Workbook

Sheet Test realizados DATASET
A1: fecha | B1: provincia | C1: test_rapidos_total | D1: test_rapidos_positivos | E1: test_antigenos_total | F1: test_antigenos_positivos | G1: pcr_total | H1: pcr_positivos
A2: 2020-03-13 | B2: Ávila | C2: 0 | D2: 0 | G2: 23 | H2: 7
A3: 2020-03-13 | B3: Burgos | C3: 0 | D3: 0 | G3: 258 | H3: 76
A4: 2020-03-13 | B4: León | C4: 0 | D4: 0 | G4: 92 | H4: 30
A5: 2020-03-13 | B5: Palencia | C5: 0 | D5: 0 | G5: 2 | H5: 0
A6: 2020-03-13 | B6: Salamanca | C6: 0 | D6: 0 | G6: 65 | H6: 18
A7: 2020-03-13 | B7: Segovia | C7: 0 | D7: 0 | G7: 1 | H7: 1
A8: 2020-03-13 | B8: Soria | C8: 0 | D8: 0 | G8: 2 | H8: 1
A9: 2020-03-13 | B9: Valladolid | C9: 0 | D9: 0 | G9: 201 | H9: 31
A10: 2020-03-13 | B10: Zamora | C10: 0 | D10: 0 | G10: 14 | H10: 0
A11: 2020-03-13 | B11: Castilla y León | C11: 0 | D11: 0 | G11: 658 | H11: 164
A12: 2020-03-14 | B12: Ávila | C12: 0 | D12: 0 | G12: 25 | H12: 8
A13: 2020-03-14 | B13: Burgos | C13: 0 | D13: 0 | G13: 312 | H13: 93
A14: 2020-03-14 | B14: León | C14: 0 | D14: 0 | G14: 148 | H14: 43
A15: 2020-03-14 | B15: Palencia | C15: 0 | D15: 0 | G15: 2 | H15: 0
A16: 2020-03-14 | B16: Salamanca | C16: 0 | D16: 0 | G16: 106 | H16: 33
A17: 2020-03-14 | B17: Segovia | C17: 0 | D17: 0 | G17: 4 | H17: 2
A18: 2020-03-14 | B18: Soria | C18: 0 | D18: 0 | G18: 5 | H18: 3
A19: 2020-03-14 | B19: Valladolid | C19: 0 | D19: 0 | G19: 280 | H19: 52
A20: 2020-03-14 | B20: Zamora | C20: 0 | D20: 0 | G20: 18 | H20: 0
A21: 2020-03-14 | B21: Castilla y León | C21: 0 | D21: 0 | G21: 900 | H21: 234
A22: 2020-03-15 | B22: Ávila | C22: 0 | D22: 0 | G22: 56 | H22: 23
A23: 2020-03-15 | B23: Burgos | C23: 0 | D23: 0 | G23: 345 | H23: 99
A24: 2020-03-15 | B24: León | C24: 0 | D24: 0 | G24: 191 | H24: 63
A25: 2020-03-15 | B25: Palencia | C25: 0 | D25: 0 | G25: 4 | H25: 0
A26: 2020-03-15 | B26: Salamanca | C26: 0 | D26: 0 | G26: 178 | H26: 55
A27: 2020-03-15 | B27: Segovia | C27: 0 | D27: 0 | G27: 4 | H27: 2
A28: 2020-03-15 | B28: Soria | C28: 0 | D28: 0 | G28: 12 | H28: 8
A29: 2020-03-15 | B29: Valladolid | C29: 0 | D29: 0 | G29: 400 | H29: 80
A30: 2020-03-15 | B30: Zamora | C30: 0 | D30: 0 | G30: 20 | H30: 0
A31: 2020-03-15 | B31: Castilla y León | C31: 0 | D31: 0 | G31: 1210 | H31: 330
A32: 2020-03-16 | B32: Ávila | C32: 0 | D32: 0 | G32: 65 | H32: 26
A33: 2020-03-16 | B33: Burgos | C33: 0 | D33: 0 | G33: 381 | H33: 116
A34: 2020-03-16 | B34: León | C34: 0 | D34: 0 | G34: 258 | H34: 91
A35: 2020-03-16 | B35: Palencia | C35: 0 | D35: 0 | G35: 5 | H35: 0
A36: 2020-03-16 | B36: Salamanca | C36: 0 | D36: 0 | G36: 238 | H36: 73
A37: 2020-03-16 | B37: Segovia | C37: 0 | D37: 0 | G37: 18 | H37: 10
A38: 2020-03-16 | B38: Soria | C38: 0 | D38: 0 | G38: 30 | H38: 22
A39: 2020-03-16 | B39: Valladolid | C39: 0 | D39: 0 | G39: 507 | H39: 102
A40: 2020-03-16 | B40: Zamora | C40: 0 | D40: 0 | G40: 52 | H40: 5
A41: 2020-03-16 | B41: Castilla y León | C41: 0 | D41: 0 | G41: 1554 | H41: 445
A42: 2020-03-17 | B42: Ávila | C42: 0 | D42: 0 | G42: 128 | H42: 53
A43: 2020-03-17 | B43: Burgos | C43: 0 | D43: 0 | G43: 436 | H43: 138
A44: 2020-03-17 | B44: León | C44: 0 | D44: 0 | G44: 328 | H44: 115
A45: 2020-03-17 | B45: Palencia | C45: 0 | D45: 0 | G45: 5 | H45: 0
A46: 2020-03-17 | B46: Salamanca | C46: 0 | D46: 0 | G46: 349 | H46: 130
A47: 2020-03-17 | B47: Segovia | C47: 0 | D47: 0 | G47: 82 | H47: 49
A48: 2020-03-17 | B48: Soria | C48: 0 | D48: 0 | G48: 70 | H48: 46
A49: 2020-03-17 | B49: Valladolid | C49: 0 | D49: 0 | G49: 680 | H49: 136
A50: 2020-03-17 | B50: Zamora | C50: 0 | D50: 0 | G50: 87 | H50: 13
A51: 2020-03-17 | B51: Castilla y León | C51: 0 | D51: 0 | G51: 2165 | H51: 680
A52: 2020-03-18 | B52: Ávila | C52: 0 | D52: 0 | G52: 138 | H52: 58
A53: 2020-03-18 | B53: Burgos | C53: 0 | D53: 0 | G53: 526 | H53: 169
A54: 2020-03-18 | B54: León | C54: 0 | D54: 0 | G54: 438 | H54: 149
A55: 2020-03-18 | B55: Palencia | C55: 0 | D55: 0 | G55: 8 | H55: 0
A56: 2020-03-18 | B56: Salamanca | C56: 0 | D56: 0 | G56: 444 | H56: 168
A57: 2020-03-18 | B57: Segovia | C57: 0 | D57: 0 | G57: 204 | H57: 121
A58: 2020-03-18 | B58: Soria | C58: 0 | D58: 0 | G58: 109 | H58: 78
A59: 2020-03-18 | B59: Valladolid | C59: 0 | D59: 0 | G59: 875 | H59: 199
A60: 2020-03-18 | B60: Zamora | C60: 0 | D60: 0 | G60: 126 | H60: 23
A61: 2020-03-18 | B61: Castilla y León | C61: 0 | D61: 0 | G61: 2868 | H61: 965
A62: 2020-03-19 | B62: Ávila | C62: 0 | D62: 0 | G62: 196 | H62: 99
A63: 2020-03-19 | B63: Burgos | C63: 0 | D63: 0 | G63: 601 | H63: 199
A64: 2020-03-19 | B64: León | C64: 0 | D64: 0 | G64: 552 | H64: 188
A65: 2020-03-19 | B65: Palencia | C65: 0 | D65: 0 | G65: 12 | H65: 1
A66: 2020-03-19 | B66: Salamanca | C66: 0 | D66: 0 | G66: 547 | H66: 221
A67: 2020-03-19 | B67: Segovia | C67: 0 | D67: 0 | G67: 235 | H67: 135
A68: 2020-03-19 | B68: Soria | C68: 0 | D68: 0 | G68: 115 | H68: 82
A69: 2020-03-19 | B69: Valladolid | C69: 0 | D69: 0 | G69: 1098 | H69: 275
A70: 2020-03-19 | B70: Zamora | C70: 0 | D70: 0 | G70: 158 | H70: 36
A71: 2020-03-19 | B71: Castilla y León | C71: 0 | D71: 0 | G71: 3514 | H71: 1236
A72: 2020-03-20 | B72: Ávila | C72: 0 | D72: 0 | G72: 248 | H72: 133
A73: 2020-03-20 | B73: Burgos | C73: 0 | D73: 0 | G73: 691 | H73: 247
A74: 2020-03-20 | B74: León | C74: 0 | D74: 0 | G74: 662 | H74: 233
A75: 2020-03-20 | B75: Palencia | C75: 0 | D75: 0 | G75: 19 | H75: 2
A76: 2020-03-20 | B76: Salamanca | C76: 0 | D76: 0 | G76: 652 | H76: 276
A77: 2020-03-20 | B77: Segovia | C77: 0 | D77: 0 | G77: 238 | H77: 135
A78: 2020-03-20 | B78: Soria | C78: 0 | D78: 0 | G78: 159 | H78: 113
A79: 2020-03-20 | B79: Valladolid | C79: 0 | D79: 0 | G79: 1334 | H79: 348
A80: 2020-03-20 | B80: Zamora | C80: 0 | D80: 0 | G80: 181 | H80: 46
A81: 2020-03-20 | B81: Castilla y León | C81: 0 | D81: 0 | G81: 4184 | H81: 1533
A82: 2020-03-21 | B82: Ávila | C82: 0 | D82: 0 | G82: 284 | H82: 150
A83: 2020-03-21 | B83: Burgos | C83: 0 | D83: 0 | G83: 779 | H83: 282
A84: 2020-03-21 | B84: León | C84: 0 | D84: 0 | G84: 771 | H84: 284
A85: 2020-03-21 | B85: Palencia | C85: 0 | D85: 0 | G85: 19 | H85: 2
A86: 2020-03-21 | B86: Salamanca | C86: 0 | D86: 0 | G86: 778 | H86: 344
A87: 2020-03-21 | B87: Segovia | C87: 0 | D87: 0 | G87: 314 | H87: 186
A88: 2020-03-21 | B88: Soria | C88: 0 | D88: 0 | G88: 182 | H88: 129
A89: 2020-03-21 | B89: Valladolid | C89: 0 | D89: 0 | G89: 1499 | H89: 412
A90: 2020-03-21 | B90: Zamora | C90: 0 | D90: 0 | G90: 227 | H90: 60
A91: 2020-03-21 | B91: Castilla y León | C91: 0 | D91: 0 | G91: 4853 | H91: 1849
A92: 2020-03-22 | B92: Ávila | C92: 0 | D92: 0 | G92: 296 | H92: 158
A93: 2020-03-22 | B93: Burgos | C93: 0 | D93: 0 | G93: 859 | H93: 326
A94: 2020-03-22 | B94: León | C94: 0 | D94: 0 | G94: 908 | H94: 359
A95: 2020-03-22 | B95: Palencia | C95: 0 | D95: 0 | G95: 22 | H95: 3
A96: 2020-03-22 | B96: Salamanca | C96: 0 | D96: 0 | G96: 957 | H96: 452
A97: 2020-03-22 | B97: Segovia | C97: 0 | D97: 0 | G97: 375 | H97: 237
A98: 2020-03-22 | B98: Soria | C98: 0 | D98: 0 | G98: 189 | H98: 135
A99: 2020-03-22 | B99: Valladolid | C99: 0 | D99: 0 | G99: 1643 | H99: 488
A100: 2020-03-22 | B100: Zamora | C100: 0 | D100: 0 | G100: 276 | H100: 78
A101: 2020-03-22 | B101: Castilla y León | C101: 0 | D101: 0 | G101: 5525 | H101: 2236
A102: 2020-03-23 | B102: Ávila | C102: 0 | D102: 0 | G102: 385 | H102: 214
A103: 2020-03-23 | B103: Burgos | C103: 0 | D103: 0 | G103: 1018 | H103: 393
A104: 2020-03-23 | B104: León | C104: 0 | D104: 0 | G104: 1090 | H104: 431
A105: 2020-03-23 | B105: Palencia | C105: 0 | D105: 0 | G105: 24 | H105: 3
A106: 2020-03-23 | B106: Salamanca | C106: 0 | D106: 0 | G106: 1123 | H106: 512
A107: 2020-03-23 | B107: Segovia | C107: 0 | D107: 0 | G107: 521 | H107: 287
A108: 2020-03-23 | B108: Soria | C108: 0 | D108: 0 | G108: 250 | H108: 174
A109: 2020-03-23 | B109: Valladolid | C109: 0 | D109: 0 | G109: 1916 | H109: 593
A110: 2020-03-23 | B110: Zamora | C110: 0 | D110: 0 | G110: 308 | H110: 89
A111: 2020-03-23 | B111: Castilla y León | C111: 0 | D111: 0 | G111: 6635 | H111: 2696
A112: 2020-03-24 | B112: Ávila | C112: 0 | D112: 0 | G112: 491 | H112: 268
A113: 2020-03-24 | B113: Burgos | C113: 0 | D113: 0 | G113: 1176 | H113: 471
A114: 2020-03-24 | B114: León | C114: 0 | D114: 0 | G114: 1215 | H114: 501
A115: 2020-03-24 | B115: Palencia | C115: 0 | D115: 0 | G115: 31 | H115: 3
A116: 2020-03-24 | B116: Salamanca | C116: 0 | D116: 0 | G116: 1270 | H116: 571
A117: 2020-03-24 | B117: Segovia | C117: 0 | D117: 0 | G117: 677 | H117: 376
A118: 2020-03-24 | B118: Soria | C118: 0 | D118: 0 | G118: 315 | H118: 223
A119: 2020-03-24 | B119: Valladolid | C119: 0 | D119: 0 | G119: 2268 | H119: 781
A120: 2020-03-24 | B120: Zamora | C120: 0 | D120: 0 | G120: 319 | H120: 91
A121: 2020-03-24 | B121: Castilla y León | C121: 0 | D121: 0 | G121: 7762 | H121: 3285
A122: 2020-03-25 | B122: Ávila | C122: 0 | D122: 0 | G122: 592 | H122: 318
A123: 2020-03-25 | B123: Burgos | C123: 0 | D123: 0 | G123: 1255 | H123: 505
A124: 2020-03-25 | B124: León | C124: 0 | D124: 0 | G124: 1394 | H124: 593
A125: 2020-03-25 | B125: Palencia | C125: 0 | D125: 0 | G125: 33 | H125: 3
A126: 2020-03-25 | B126: Salamanca | C126: 0 | D126: 0 | G126: 1627 | H126: 747
A127: 2020-03-25 | B127: Segovia | C127: 0 | D127: 0 | G127: 895 | H127: 504
A128: 2020-03-25 | B128: Soria | C128: 0 | D128: 0 | G128: 399 | H128: 282
A129: 2020-03-25 | B129: Valladolid | C129: 0 | D129: 0 | G129: 2587 | H129: 951
A130: 2020-03-25 | B130: Zamora | C130: 0 | D130: 0 | G130: 340 | H130: 98
A131: 2020-03-25 | B131: Castilla y León | C131: 0 | D131: 0 | G131: 9122 | H131: 4001
A132: 2020-03-26 | B132: Ávila | C132: 0 | D132: 0 | G132: 792 | H132: 430
A133: 2020-03-26 | B133: Burgos | C133: 0 | D133: 0 | G133: 1463 | H133: 594
A134: 2020-03-26 | B134: León | C134: 0 | D134: 0 | G134: 1653 | H134: 701
A135: 2020-03-26 | B135: Palencia | C135: 0 | D135: 0 | G135: 36 | H135: 5
A136: 2020-03-26 | B136: Salamanca | C136: 0 | D136: 0 | G136: 1895 | H136: 869
A137: 2020-03-26 | B137: Segovia | C137: 0 | D137: 0 | G137: 1155 | H137: 688
A138: 2020-03-26 | B138: Soria | C138: 0 | D138: 0 | G138: 546 | H138: 376
A139: 2020-03-26 | B139: Valladolid | C139: 0 | D139: 0 | G139: 2934 | H139: 1104
A140: 2020-03-26 | B140: Zamora | C140: 0 | D140: 0 | G140: 418 | H140: 119
A141: 2020-03-26 | B141: Castilla y León | C141: 0 | D141: 0 | G141: 10892 | H141: 4886
A142: 2020-03-27 | B142: Ávila | C142: 0 | D142: 0 | G142: 845 | H142: 466
A143: 2020-03-27 | B143: Burgos | C143: 0 | D143: 0 | G143: 1629 | H143: 669
A144: 2020-03-27 | B144: León | C144: 0 | D144: 0 | G144: 1909 | H144: 836
A145: 2020-03-27 | B145: Palencia | C145: 0 | D145: 0 | G145: 57 | H145: 13
A146: 2020-03-27 | B146: Salamanca | C146: 0 | D146: 0 | G146: 2257 | H146: 1059
A147: 2020-03-27 | B147: Segovia | C147: 0 | D147: 0 | G147: 1313 | H147: 789
A148: 2020-03-27 | B148: Soria | C148: 0 | D148: 0 | G148: 618 | H148: 418
A149: 2020-03-27 | B149: Valladolid | C149: 0 | D149: 0 | G149: 3248 | H149: 1217
A150: 2020-03-27 | B150: Zamora | C150: 0 | D150: 0 | G150: 552 | H150: 171
A151: 2020-03-27 | B151: Castilla y León | C151: 0 | D151: 0 | G151: 12428 | H151: 5638
A152: 2020-03-28 | B152: Ávila | C152: 0 | D152: 0 | G152: 877 | H152: 478
A153: 2020-03-28 | B153: Burgos | C153: 0 | D153: 0 | G153: 1723 | H153: 710
A154: 2020-03-28 | B154: León | C154: 0 | D154: 0 | G154: 2136 | H154: 946
A155: 2020-03-28 | B155: Palencia | C155: 0 | D155: 0 | G155: 155 | H155: 57
A156: 2020-03-28 | B156: Salamanca | C156: 0 | D156: 0 | G156: 2451 | H156: 1126
A157: 2020-03-28 | B157: Segovia | C157: 0 | D157: 0 | G157: 1610 | H157: 967
A158: 2020-03-28 | B158: Soria | C158: 0 | D158: 0 | G158: 742 | H158: 502
A159: 2020-03-28 | B159: Valladolid | C159: 0 | D159: 0 | G159: 3552 | H159: 1309
A160: 2020-03-28 | B160: Zamora | C160: 0 | D160: 0 | G160: 612 | H160: 189
A161: 2020-03-28 | B161: Castilla y León | C161: 0 | D161: 0 | G161: 13858 | H161: 6284
A162: 2020-03-29 | B162: Ávila | C162: 0 | D162: 0 | G162: 1048 | H162: 560
A163: 2020-03-29 | B163: Burgos | C163: 0 | D163: 0 | G163: 1839 | H163: 750
A164: 2020-03-29 | B164: León | C164: 0 | D164: 0 | G164: 2288 | H164: 1004
A165: 2020-03-29 | B165: Palencia | C165: 0 | D165: 0 | G165: 216 | H165: 85
A166: 2020-03-29 | B166: Salamanca | C166: 0 | D166: 0 | G166: 2606 | H166: 1169
A167: 2020-03-29 | B167: Segovia | C167: 0 | D167: 0 | G167: 1719 | H167: 1035
A168: 2020-03-29 | B168: Soria | C168: 0 | D168: 0 | G168: 796 | H168: 530
A169: 2020-03-29 | B169: Valladolid | C169: 0 | D169: 0 | G169: 3708 | H169: 1361
A170: 2020-03-29 | B170: Zamora | C170: 0 | D170: 0 | G170: 646 | H170: 200
A171: 2020-03-29 | B171: Castilla y León | C171: 0 | D171: 0 | G171: 14866 | H171: 6694
A172: 2020-03-30 | B172: Ávila | C172: 0 | D172: 0 | G172: 1107 | H172: 597
A173: 2020-03-30 | B173: Burgos | C173: 0 | D173: 0 | G173: 1960 | H173: 782
A174: 2020-03-30 | B174: León | C174: 0 | D174: 0 | G174: 2408 | H174: 1042
A175: 2020-03-30 | B175: Palencia | C175: 0 | D175: 0 | G175: 267 | H175: 100
A176: 2020-03-30 | B176: Salamanca | C176: 0 | D176: 0 | G176: 2994 | H176: 1335
A177: 2020-03-30 | B177: Segovia | C177: 0 | D177: 0 | G177: 1807 | H177: 1078
A178: 2020-03-30 | B178: Soria | C178: 0 | D178: 0 | G178: 800 | H178: 534
A179: 2020-03-30 | B179: Valladolid | C179: 0 | D179: 0 | G179: 3991 | H179: 1453
A180: 2020-03-30 | B180: Zamora | C180: 0 | D180: 0 | G180: 685 | H180: 210
A181: 2020-03-30 | B181: Castilla y León | C181: 0 | D181: 0 | G181: 16019 | H181: 7131
A182: 2020-03-31 | B182: Ávila | C182: 0 | D182: 0 | G182: 1296 | H182: 710
A183: 2020-03-31 | B183: Burgos | C183: 0 | D183: 0 | G183: 2130 | H183: 833
A184: 2020-03-31 | B184: León | C184: 0 | D184: 0 | G184: 2596 | H184: 1108
A185: 2020-03-31 | B185: Palencia | C185: 0 | D185: 0 | G185: 333 | H185: 125
A186: 2020-03-31 | B186: Salamanca | C186: 0 | D186: 0 | G186: 3361 | H186: 1440
A187: 2020-03-31 | B187: Segovia | C187: 0 | D187: 0 | G187: 1982 | H187: 1164
A188: 2020-03-31 | B188: Soria | C188: 0 | D188: 0 | G188: 906 | H188: 594
A189: 2020-03-31 | B189: Valladolid | C189: 0 | D189: 0 | G189: 4274 | H189: 1537
A190: 2020-03-31 | B190: Zamora | C190: 0 | D190: 0 | G190: 712 | H190: 213
A191: 2020-03-31 | B191: Castilla y León | C191: 0 | D191: 0 | G191: 17590 | H191: 7724
A192: 2020-04-01 | B192: Ávila | C192: 24 | D192: 2 | G192: 1447 | H192: 783
A193: 2020-04-01 | B193: Burgos | C193: 0 | D193: 0 | G193: 2338 | H193: 886
A194: 2020-04-01 | B194: León | C194: 0 | D194: 0 | G194: 2866 | H194: 1176
A195: 2020-04-01 | B195: Palencia | C195: 0 | D195: 0 | G195: 421 | H195: 161
A196: 2020-04-01 | B196: Salamanca | C196: 2 | D196: 0 | G196: 3717 | H196: 1550
A197: 2020-04-01 | B197: Segovia | C197: 0 | D197: 0 | G197: 2310 | H197: 1263
A198: 2020-04-01 | B198: Soria | C198: 0 | D198: 0 | G198: 1078 | H198: 671
A199: 2020-04-01 | B199: Valladolid | C199: 0 | D199: 0 | G199: 4711 | H199: 1670
A200: 2020-04-01 | B200: Zamora | C200: 0 | D200: 0 | G200: 821 | H200: 218
... 4300 more rows

Sheet Test realizados COPIAR
A1: fecha | B1: provincia | C1: test_rapidos_total | D1: test_rapidos_positivos | E1: test_antigenos_total | F1: test_antigenos_positivos | G1: pcr_total | H1: pcr_positivos
A2: =TODAY()-1-MACRO!E11 -> 2026-04-23 | B2: Ávila | C2: =SUBSTITUTE('Test realizados en BRUTO'!K2,".","")+0 -> 47685 | D2: =SUBSTITUTE('Test realizados en BRUTO'!L2,".","")+0 -> 2010 | E2: =SUBSTITUTE('Test realizados en BRUTO'!N2,".","")+0 -> 218945 | F2: =SUBSTITUTE('Test realizados en BRUTO'!O2,".","")+0 -> 40707 | G2: =SUBSTITUTE('Test realizados en BRUTO'!Q2,".","")+0 -> 209795 | H2: =SUBSTITUTE('Test realizados en BRUTO'!R2,".","")+0 -> 14659
A3: =A2 -> 2026-04-23 | B3: Burgos | C3: =SUBSTITUTE('Test realizados en BRUTO'!K3,".","")+0 -> 78684 | D3: =SUBSTITUTE('Test realizados en BRUTO'!L3,".","")+0 -> 4569 | E3: =SUBSTITUTE('Test realizados en BRUTO'!N3,".","")+0 -> 397662 | F3: =SUBSTITUTE('Test realizados en BRUTO'!O3,".","")+0 -> 92780 | G3: =SUBSTITUTE('Test realizados en BRUTO'!Q3,".","")+0 -> 592592 | H3: =SUBSTITUTE('Test realizados en BRUTO'!R3,".","")+0 -> 42413
A4: =A3 -> 2026-04-23 | B4: León | C4: =SUBSTITUTE('Test realizados en BRUTO'!K4,".","")+0 -> 95136 | D4: =SUBSTITUTE('Test realizados en BRUTO'!L4,".","")+0 -> 6674 | E4: =SUBSTITUTE('Test realizados en BRUTO'!N4,".","")+0 -> 577731 | F4: =SUBSTITUTE('Test realizados en BRUTO'!O4,".","")+0 -> 109131 | G4: =SUBSTITUTE('Test realizados en BRUTO'!Q4,".","")+0 -> 607640 | H4: =SUBSTITUTE('Test realizados en BRUTO'!R4,".","")+0 -> 52783
A5: 2026-04-23 | B5: Palencia | C5: =SUBSTITUTE('Test realizados en BRUTO'!K5,".","")+0 -> 43271 | D5: =SUBSTITUTE('Test realizados en BRUTO'!L5,".","")+0 -> 1629 | E5: =SUBSTITUTE('Test realizados en BRUTO'!N5,".","")+0 -> 243540 | F5: =SUBSTITUTE('Test realizados en BRUTO'!O5,".","")+0 -> 46763 | G5: =SUBSTITUTE('Test realizados en BRUTO'!Q5,".","")+0 -> 250928 | H5: =SUBSTITUTE('Test realizados en BRUTO'!R5,".","")+0 -> 22201
A6: 2026-04-23 | B6: Salamanca | C6: =SUBSTITUTE('Test realizados en BRUTO'!K6,".","")+0 -> 62160 | D6: =SUBSTITUTE('Test realizados en BRUTO'!L6,".","")+0 -> 3995 | E6: =SUBSTITUTE('Test realizados en BRUTO'!N6,".","")+0 -> 309163 | F6: =SUBSTITUTE('Test realizados en BRUTO'!O6,".","")+0 -> 84633 | G6: =SUBSTITUTE('Test realizados en BRUTO'!Q6,".","")+0 -> 433252 | H6: =SUBSTITUTE('Test realizados en BRUTO'!R6,".","")+0 -> 35941
A7: 2026-04-23 | B7: Segovia | C7: =SUBSTITUTE('Test realizados en BRUTO'!K7,".","")+0 -> 44556 | D7: =SUBSTITUTE('Test realizados en BRUTO'!L7,".","")+0 -> 5421 | E7: =SUBSTITUTE('Test realizados en BRUTO'!N7,".","")+0 -> 185192 | F7: =SUBSTITUTE('Test realizados en BRUTO'!O7,".","")+0 -> 32046 | G7: =SUBSTITUTE('Test realizados en BRUTO'!Q7,".","")+0 -> 256196 | H7: =SUBSTITUTE('Test realizados en BRUTO'!R7,".","")+0 -> 20624
A8: 2026-04-23 | B8: Soria | C8: =SUBSTITUTE('Test realizados en BRUTO'!K8,".","")+0 -> 42510 | D8: =SUBSTITUTE('Test realizados en BRUTO'!L8,".","")+0 -> 2781 | E8: =SUBSTITUTE('Test realizados en BRUTO'!N8,".","")+0 -> 112714 | F8: =SUBSTITUTE('Test realizados en BRUTO'!O8,".","")+0 -> 23122 | G8: =SUBSTITUTE('Test realizados en BRUTO'!Q8,".","")+0 -> 184255 | H8: =SUBSTITUTE('Test realizados en BRUTO'!R8,".","")+0 -> 11702
A9: 2026-04-23 | B9: Valladolid | C9: =SUBSTITUTE('Test realizados en BRUTO'!K9,".","")+0 -> 88212 | D9: =SUBSTITUTE('Test realizados en BRUTO'!L9,".","")+0 -> 3707 | E9: =SUBSTITUTE('Test realizados en BRUTO'!N9,".","")+0 -> 589076 | F9: =SUBSTITUTE('Test realizados en BRUTO'!O9,".","")+0 -> 149447 | G9: =SUBSTITUTE('Test realizados en BRUTO'!Q9,".","")+0 -> 817674 | H9: =SUBSTITUTE('Test realizados en BRUTO'!R9,".","")+0 -> 64624
A10: 2026-04-23 | B10: Zamora | C10: =SUBSTITUTE('Test realizados en BRUTO'!K10,".","")+0 -> 41812 | D10: =SUBSTITUTE('Test realizados en BRUTO'!L10,".","")+0 -> 1946 | E10: =SUBSTITUTE('Test realizados en BRUTO'!N10,".","")+0 -> 178365 | F10: =SUBSTITUTE('Test realizados en BRUTO'!O10,".","")+0 -> 42193 | G10: =SUBSTITUTE('Test realizados en BRUTO'!Q10,".","")+0 -> 256489 | H10: =SUBSTITUTE('Test realizados en BRUTO'!R10,".","")+0 -> 21129
A11: 2026-04-23 | B11: Castilla y León | C11: =SUBSTITUTE('Test realizados en BRUTO'!K11,".","")+0 -> 544026 | D11: =SUBSTITUTE('Test realizados en BRUTO'!L11,".","")+0 -> 32732 | E11: =SUBSTITUTE('Test realizados en BRUTO'!N11,".","")+0 -> 2812388 | F11: =SUBSTITUTE('Test realizados en BRUTO'!O11,".","")+0 -> 620823 | G11: =SUBSTITUTE('Test realizados en BRUTO'!Q11,".","")+0 -> 3608821 | H11: =SUBSTITUTE('Test realizados en BRUTO'!R11,".","")+0 -> 286076

Sheet MACRO
B1: P1. [Test]
A2: CONTROL | B2: =IF(AND('Test realizados en BRUTO'!R1="PCR_POSITIVOS",B11=TODAY()-1-E11,OFFSET('Test realizados DATASET'!$A$1,($B$11-4-'Test realizados DATASET'!$A$2)*10,6)<'Test realizados en BRUTO'!Q11),"OK","ERROR") -> OK | C2: =IF('Test realizados en BRUTO'!R1<>"PCR_POSITIVOS","La estructura de datos de 'Test realizados en BRUTO' ha cambiado",IF(B11<>TODAY()-1-E11,"La fecha no es la correcta",IF(OFFSET('Test realizados DATASET'!$A$1,($B$11-3-'Test realizados DATASET'!$A$2)*10,6)>='Test realizados en BRUTO'!Q11,"Los datos de PCR totales no son mayores que los de ayer. REVISAR si se han actualizado",""))) -> 
A4: RUTA | B4: G:\Gobierno Abierto\Datos Abiertos\Proyectos Exportacion Datasets\COVID-19\Ficheros_Datasets\TestTotales
A5: Nombre XLSM | B5: =CONCATENATE("test_realizados_",TEXT('Test realizados COPIAR'!A2,"AAAAMMDD"),".xlsm") -> test_realizados_20260423.xlsm
A6: Nombre CSV | B6: =CONCATENATE("test_realizados_",TEXT('Test realizados COPIAR'!A2,"AAAAMMDD"),".csv") -> test_realizados_20260423.csv
A8: Hoja COPIAR | B8: Test realizados COPIAR
A9: Hoja DATASET | B9: Test realizados DATASET
A10: MODO | B10: incremental:A
A11: Fecha | B11: ='Test realizados COPIAR'!A2 -> 2026-04-23 | D11: DIAS ATRASADOS DATOS | E11: 0 | F11: poner 13, 12, 11, … HASTA llegar a 0
E12: =CONCATENATE("RECOMENDADO ",IF(E11=0,13,E11-1)) -> RECOMENDADO 13
A13: Origen datos | B13: RESUMEN_PROV_VIRTUAL_PAC_NUEVOS_AAAAMMDD.xls
A14: RUTA Origen | B14: =CONCATENATE(SUBSTITUTE(B4,"\Ficheros_Datasets\","\Ficheros_SACYL\S_"),"\",SUBSTITUTE(B13,"AAAAMMDD",TEXT(B11,"AAAAMMDD"))) -> G:\Gobierno Abierto\Datos Abiertos\Proyectos Exportacion Datasets\COVID-19\Ficheros_SACYL\S_TestTotales\RESUMEN_PROV_VIRTUAL_PAC_NUEVOS_20260423.xls
A15: Hoja PEGAR | B15: P1:P4
E17: Nº de repeticiones (N)

Sheet Test realizados en BRUTO
A1: PROVINCIA | B1: IGM_TOTAL | C1: IGM_POSITIVOS | D1: IGM_PORCENTAJE | E1: IGG_TOTAL | F1: IGG_POSITIVOS | G1: IGG_PORCENTAJE | H1: IGG_IGM_TOTAL | I1: IGG_IGM_POSITIVOS | J1: IGG_IGM_PORCENTAJE | K1: TEST_TOTAL | L1: TEST_POSITIVOS | M1: TEST_PORCENTAJE | N1: TESTAG_TOTAL | O1: TESTAG_POSITIVOS | P1: TESTAG_PORCENTAJE | Q1: PCR_TOTAL | R1: PCR_POSITIVOS | S1: PCR_PORCENTAJE | T1: TOTAL_PRUEBAS | U1: TOTAL_PRUEBAS_POSITIVAS | V1: PORCENTAJE_TOTAL
A2: AVILA | B2: 22259 | C2: 502 | D2: 0.02 | E2: 21505 | F2: 1173 | G2: 0.05 | H2: 3921 | I2: 335 | J2: 0.09 | K2: 47685 | L2: 2010 | M2: 0.04 | N2: 218945 | O2: 40707 | P2: 0.19 | Q2: 209795 | R2: 14659 | S2: 0.07 | T2: 476425 | U2: 57376 | V2: 0.12
A3: BURGOS | B3: 28118 | C3: 767 | D3: 0.03 | E3: 37564 | F3: 3128 | G3: 0.08 | H3: 13002 | I3: 674 | J3: 0.05 | K3: 78684 | L3: 4569 | M3: 0.06 | N3: 397662 | O3: 92780 | P3: 0.23 | Q3: 592592 | R3: 42413 | S3: 0.07 | T3: 1068938 | U3: 139762 | V3: 0.13
A4: LEON | B4: 19693 | C4: 541 | D4: 0.03 | E4: 56370 | F4: 5053 | G4: 0.09 | H4: 19073 | I4: 1080 | J4: 0.06 | K4: 95136 | L4: 6674 | M4: 0.07 | N4: 577731 | O4: 109131 | P4: 0.19 | Q4: 607640 | R4: 52783 | S4: 0.09 | T4: 1280507 | U4: 168588 | V4: 0.13
A5: PALENCIA | B5: 12134 | C5: 324 | D5: 0.03 | E5: 24729 | F5: 1116 | G5: 0.05 | H5: 6408 | I5: 189 | J5: 0.03 | K5: 43271 | L5: 1629 | M5: 0.04 | N5: 243540 | O5: 46763 | P5: 0.19 | Q5: 250928 | R5: 22201 | S5: 0.09 | T5: 537739 | U5: 70593 | V5: 0.13
A6: SALAMANCA | B6: 23859 | C6: 791 | D6: 0.03 | E6: 27166 | F6: 2174 | G6: 0.08 | H6: 11135 | I6: 1030 | J6: 0.09 | K6: 62160 | L6: 3995 | M6: 0.06 | N6: 309163 | O6: 84633 | P6: 0.27 | Q6: 433252 | R6: 35941 | S6: 0.08 | T6: 804575 | U6: 124569 | V6: 0.15
A7: SEGOVIA | B7: 11900 | C7: 333 | D7: 0.03 | E7: 25719 | F7: 3816 | G7: 0.15 | H7: 6937 | I7: 1272 | J7: 0.18 | K7: 44556 | L7: 5421 | M7: 0.12 | N7: 185192 | O7: 32046 | P7: 0.17 | Q7: 256196 | R7: 20624 | S7: 0.08 | T7: 485944 | U7: 58091 | V7: 0.12
A8: SORIA | B8: 12768 | C8: 393 | D8: 0.03 | E8: 19970 | F8: 1507 | G8: 0.08 | H8: 9772 | I8: 881 | J8: 0.09 | K8: 42510 | L8: 2781 | M8: 0.07 | N8: 112714 | O8: 23122 | P8: 0.21 | Q8: 184255 | R8: 11702 | S8: 0.06 | T8: 339479 | U8: 37605 | V8: 0.11
A9: VALLADOLID | B9: 28959 | C9: 703 | D9: 0.02 | E9: 45539 | F9: 2681 | G9: 0.06 | H9: 13714 | I9: 323 | J9: 0.02 | K9: 88212 | L9: 3707 | M9: 0.04 | N9: 589076 | O9: 149447 | P9: 0.25 | Q9: 817674 | R9: 64624 | S9: 0.08 | T9: 1494962 | U9: 217778 | V9: 0.15
A10: ZAMORA | B10: 12531 | C10: 345 | D10: 0.03 | E10: 17938 | F10: 959 | G10: 0.05 | H10: 11343 | I10: 642 | J10: 0.06 | K10: 41812 | L10: 1946 | M10: 0.05 | N10: 178365 | O10: 42193 | P10: 0.24 | Q10: 256489 | R10: 21129 | S10: 0.08 | T10: 476666 | U10: 65268 | V10: 0.14
A11: TOTAL | B11: 172221 | C11: 4699 | D11: 0.03 | E11: 276500 | F11: 21607 | G11: 0.08 | H11: 95305 | I11: 6426 | J11: 0.07 | K11: 544026 | L11: 32732 | M11: 0.06 | N11: 2812388 | O11: 620823 | P11: 0.22 | Q11: 3608821 | R11: 286076 | S11: 0.08 | T11: 6965235 | U11: 939631 | V11: 0.13
